[Event "2nd Turkish League 2017"]
[Site "Konya"]
[Date "2017.07.20"]
[Round "5"]
[White "Yasin, Hur"]
[Black "Simsek, Cevdet"]
[Result "1-0"]
[ECO "B12"]
[WhiteElo "2022"]
[BlackElo "2100"]
[Annotator "RC"]
[PlyCount "171"]
[EventType "team-tourn"]
[EventCountry "TUR"]
[SourceTitle "playchess.com"]
[Source "ChessBase"]
[SourceQuality "1"]
[TimeControl "5400+30"]

1. e4 {[%emt 0:00:30]} c6 {[%emt 0:01:00]} 2. d4 {[%emt 0:00:30]} d5 {[%emt 0:00:30]} 3. e5 {[%emt 0:00:30]} Bf5 {[%emt 0:00:00]} 4. h4 {[%emt 0:00:00]} h5 {[%emt 0:03:00]} 5. c4 {[%emt 0:00:00]} e6 {[%emt 0:00:30]} 6. Nc3 {[%emt 0:00:30]} Nd7 {[%emt 0:03:30]} 7. Nge2 {[%emt 0:02:30]} dxc4 {[%emt 0:08:30]} 8. Ng3 {[%emt 0:00:30]} Ne7 {[%emt 0:01:30]} 9. Bg5 {[%emt 0:00:30]} Qc7 {[%emt 0:07:30]} 10. Bxe7 {[%emt 0:03:30]} Bxe7 {[%emt 0:06:30]} 11. Nxf5 {[%emt 0:00:30]} exf5 {[%emt 0:00:30]} 12. Bxc4 {[%emt 0:00:30]} Nb6 {[%emt 0:16:30]} 13. Bb3 {[%emt 0:03:30]} Bb4 {[%emt 0:01:30]} 14. Qf3 {[%emt 0:08:30]} g6 {[%emt 0:03:30]} 15. O-O {[%emt 0:02:30]} O-O {[%emt 0:09:30]} 16. Ne2 {[%emt 0:01:30]} Bd2 {[%emt 0:02:30]} 17. Rfd1 {[%emt 0:11:30]} Bh6 {[%emt 0:00:30]} 18. Ng3 {[%emt 0:00:00]} Qe7 {[%emt 0:11:30]} 19. Nxf5 {[%emt 0:09:00]} gxf5 {[%emt 0:00:30]} 20. Qxf5 {[%emt 0:00:00]} Kg7 {[%emt 0:03:01]} 21. Rd3 {[%emt 0:00:00]} Rh8 {[%emt 0:00:10]} 22. e6 {[%emt 0:15:30]} f6 {[%emt 0:03:22]} 23. Rf3 {[%emt 0:01:30]} Rad8 {[%emt 0:03:06]} 24. Bc2 {[%emt 0:08:30]} Nd5 {[%emt 0:03:05]} 25. Re1 {[%emt 0:00:30]} Rd6 {[%emt 0:02:22]} 26. Qxh5 {[%emt 0:03:30]} Kf8 {[%emt 0:01:04]} 27. Bf5 {[%emt 0:03:30]} Bg7 {[%emt 0:00:36]} 28. Qg4 {[%emt 0:00:30]} Ke8 {[%emt 0:01:15]} 29. Rg3 {[%emt 0:00:30]} Bh6 {[%emt 0:00:08]} 30. Qh5+ {[%emt 0:06:18]} Kd8 {[%emt 0:00:23]} 31. Rg6 {[%emt 0:00:12]} Qf8 {[%emt 0:04:12]} 32. Qf3 {[%emt 0:03:38]} Ne7 {[%emt 0:00:26]} 33. Rg4 {[%emt 0:00:26]} Kc8 {[%emt 0:00:35]} 34. Rge4 {[%emt 0:02:52]} Bd2 {[%emt 0:02:11]} 35. Rd1 {[%emt 0:01:31]} Ba5 {[%emt 0:00:10]} 36. Bh3 {[%emt 0:00:26]} Bb6 {[%emt 0:00:43]} 37. Rf4 {[%emt 0:02:09]} Qd8 {[%emt 0:00:09]} 38. Qc3 {[%emt 0:02:59]} Kb8 {[%emt 0:00:21]} 39. Qc4 {[%emt 0:01:01]} Rf8 {[%emt 0:01:25]} 40. b4 {[%emt 0:00:39]} Nd5 {[%emt 0:00:43]} 41. Re4 {[%emt 0:00:51]} Qe7 {[%emt 0:00:01]} 42. b5 {[%emt 0:02:19]} cxb5 {[%emt 0:00:19]} 43. Qb3 {[%emt 0:00:51]} Rfd8 {[%emt 0:00:06]} 44. g3 {[%emt 0:00:28]} b4 {[%emt 0:00:02]} 45. Rc1 {[%emt 0:01:28]} Nc3 {[%emt 0:00:49]} 46. Ree1 {[%emt 0:00:01]} Rxd4 {[%emt 0:00:02]} 47. Rc2 {[%emt 0:02:27]} Rd3 {[%emt 0:00:32]} 48. Kg2 {[%emt 0:01:02]} Rd2 {[%emt 0:02:23]} 49. Rf1 {[%emt 0:01:10]} R2d3 {[%emt 0:01:11]} 50. a3 {[%emt 0:00:35]} a5 {[%emt 0:00:31]} 51. Bf5 {[%emt 0:01:10]} R3d5 {[%emt 0:00:30]} 52. g4 {[%emt 0:00:00]} Rd4 {[%emt 0:01:04]} 53. axb4 {[%emt 0:00:45]} axb4 {[%emt 0:00:30]} 54. Rxc3 {[%emt 0:00:00]} bxc3 {[%emt 0:00:20]} 55. Qxb6 {[%emt 0:00:00]} Qc7 {[%emt 0:00:06]} 56. Qb3 {[%emt 0:00:49]} Rc4 {[%emt 0:00:49]} 57. Re1 {[%emt 0:00:48]} Re8 {[%emt 0:00:32]} 58. Re2 {[%emt 0:00:49]} Re7 {[%emt 0:00:20]} 59. h5 {[%emt 0:00:00]} Qf4 {[%emt 0:00:48]} 60. Qa3 {[%emt 0:00:25]} Qc7 {[%emt 0:00:37]} 61. Ra2 {[%emt 0:00:35]} Qc5 {[%emt 0:00:24]} 62. Qa8+ {[%emt 0:01:30]} Kc7 {[%emt 0:00:00]} 63. Qf8 {[%emt 0:00:13]} Qc6+ {[%emt 0:00:27]} 64. f3 {[%emt 0:00:27]} Qd6 {[%emt 0:00:44]} 65. Ra8 {[%emt 0:00:25]} Kb6 {[%emt 0:00:17]} 66. Rd8 {[%emt 0:00:17]} Qb4 {[%emt 0:00:57]} 67. Rc8 {[%emt 0:00:40]} Rxc8 {[%emt 0:01:04]} 68. Qxc8 {[%emt 0:00:08]} Qc5 {[%emt 0:00:00]} 69. Qd8+ {[%emt 0:00:26]} Qc7 {[%emt 0:00:56]} 70. Qd4+ {[%emt 0:00:11]} Qc5 {[%emt 0:00:00]} 71. Qd8+ {[%emt 0:00:39]} Ka7 {[%emt 0:00:12]} 72. Qd3 {[%emt 0:00:27]} c2 {[%emt 0:00:14]} 73. Qxc2 {[%emt 0:00:00]} Qxc2+ {[%emt 0:00:30]} 74. Bxc2 {[%emt 0:00:03]} Rxe6 {[%emt 0:00:30]} 75. Bg6 {[%emt 0:00:30]} Rd6 {[%emt 0:00:13]} 76. h6 {[%emt 0:00:16]} Rd8 {[%emt 0:00:01]} 77. h7 {[%emt 0:00:17]} Rh8 {[%emt 0:00:04]} 78. Kg3 {[%emt 0:00:31]} b5 {[%emt 0:00:17]} 79. Kf4 {[%emt 0:01:16]} b4 {[%emt 0:00:09]} 80. Kf5 {[%emt 0:00:14]} Rf8 {[%emt 0:00:30]} 81. Ke6 {[%emt 0:00:00]} b3 {[%emt 0:00:00]} 82. Ke7 {[%emt 0:00:00]} Rb8 {[%emt 0:00:00]} 83. Bb1 {[%emt 0:01:54]} Kb6 {[%emt 0:00:02]} 84. Kxf6 {[%emt 0:00:00]} Kc5 {[%emt 0:00:08]} 85. g5 {[%emt 0:00:10]} Kd4 {[%emt 0:00:16]} 86. g6 {[%emt 0:00:18]} 1-0

[Event "2nd Turkish League 2017"]
[Site "Konya"]
[Date "2017.07.20"]
[Round "5"]
[White "Alaz, Ahmet Efekan"]
[Black "Sahinoglu, Hakan"]
[Result "1-0"]
[ECO "D02"]
[WhiteElo "2015"]
[BlackElo "1835"]
[Annotator "NA"]
[PlyCount "87"]
[EventType "team-tourn"]
[EventCountry "TUR"]
[SourceTitle "playchess.com"]
[Source "ChessBase"]
[SourceQuality "1"]
[TimeControl "5400+30"]

1. d4 {[%emt 0:00:30]} d5 {[%emt 0:01:00]} 2. Bf4 {[%emt 0:00:00]} Nf6 {[%emt 0:00:30]} 3. Nf3 {[%emt 0:00:00]} e6 {[%emt 0:00:00]} 4. e3 {[%emt 0:01:30]} c5 {[%emt 0:00:00]} 5. c3 {[%emt 0:00:00]} Nc6 {[%emt 0:00:30]} 6. Nbd2 {[%emt 0:01:00]} Be7 {[%emt 0:02:30]} 7. Bd3 {[%emt 0:00:30]} O-O {[%emt 0:01:30]} 8. Ne5 {[%emt 0:02:30]} Bd7 {[%emt 0:09:30]} 9. h4 {[%emt 0:00:30] D02: 1 d4 d5 2 Nf3 sidelines, including 2...Nf6 3 g3 and 2...Nf6 3 Bf4} Qb6 {[%emt 0:01:30]} (9... Be8 10. g4 cxd4 11. exd4 Rc8 12. Nef3 Bd6 13. Be5 Bxe5 14. dxe5 Nxg4 15. Bxh7+ Kh8 16. Rg1 {½-½ (50) Motylev,A (2680)-Wen,Y (2581) China 2014}) 10. Rb1 {[%emt 0:03:30]} Rfd8 {[%emt 0:18:30]} 11. g4 $146 {[%emt 0:02:30]} ({Predecessor:} 11. Qf3 Be8 12. g4 cxd4 13. exd4 Nxe5 14. Bxe5 Nd7 15. Bg3 f6 16. h5 Bf7 {1-0 (27) Warner,D (2240)-Nakamura,R (2187) Khanty-Mansiysk 2010}) 11... Nxe5 {[%emt 0:14:30]} 12. dxe5 {[%emt 0:09:30]} Ne4 $1 {[%emt 0:00:30]} 13. Qc2 {[%emt 0:15:30]} Bc6 {[%emt 0:01:30]} 14. f3 {[%emt 0:00:30]} Nxd2 {[%emt 0:01:30]} 15. Bxh7+ {[%emt 0:00:30]} Kh8 {[%emt 0:00:30]} 16. Kxd2 {[%emt 0:00:00]} Qa6 {[%emt 0:17:30]} 17. Bd3 {[%emt 0:03:00]} Bb5 {[%emt 0:01:30]} 18. Bxb5 {[%emt 0:01:30]} Qxb5 {[%emt 0:00:30]} 19. Qb3 {[%emt 0:02:30]} Qxb3 {[%emt 0:11:01]} 20. axb3 {[%emt 0:00:30]} d4 {[%emt 0:00:00]} 21. Kc2 {[%emt 0:04:30]} b5 {[%emt 0:03:22]} 22. Rhd1 $16 {[%emt 0:03:30]} dxc3 {[%emt 0:09:06]} 23. bxc3 {[%emt 0:00:30]} a5 {[%emt 0:00:13]} 24. h5 {[%emt 0:05:30]} Kg8 {[%emt 0:02:24]} 25. e4 {[%emt 0:00:30]} a4 {[%emt 0:01:14]} 26. Rxd8+ {[%emt 0:01:30]} Bxd8 {[%emt 0:00:45]} 27. bxa4 {[%emt 0:00:30]} bxa4 {[%emt 0:00:00]} 28. Bc1 {[%emt 0:00:00]} Kf8 {[%emt 0:02:09]} 29. Ba3 {[%emt 0:01:00]} Be7 {[%emt 0:00:04]} 30. Rb5 {[%emt 0:00:30]} Bg5 {[%emt 0:00:25]} 31. Bxc5+ {[%emt 0:00:00]} Ke8 {[%emt 0:00:04]} 32. Bd6 {[%emt 0:00:00]} Kd7 {[%emt 0:00:37]} 33. Kb2 {[%emt 0:02:30]} Kc6 {[%emt 0:00:44]} 34. Rc5+ {[%emt 0:00:30]} Kb6 {[%emt 0:00:02]} 35. Rc4 {[%emt 0:00:30]} Kb5 {[%emt 0:01:41]} 36. Rb4+ {[%emt 0:00:00]} Kc6 {[%emt 0:00:01]} 37. c4 {[%emt 0:00:00]} Bd2 {[%emt 0:00:32]} 38. Rb5 {[%emt 0:00:30]} Be3 {[%emt 0:00:38]} 39. Ka3 {[%emt 0:01:30]} Bc1+ {[%emt 0:00:30]} 40. Ka2 {[%emt 0:00:30]} Be3 {[%emt 0:00:00]} 41. Rb2 {[%emt 0:00:30]} Ra7 {[%emt 0:01:25]} 42. c5 {[%emt 0:00:30]} a3 {[%emt 0:00:55]} 43. Rb6+ {[%emt 0:00:30]} Kd7 {[%emt 0:00:30]} 44. c6+ {[%emt 0:00:00]} 1-0

[Event "2nd Turkish League 2017"]
[Site "Konya"]
[Date "2017.07.20"]
[Round "5"]
[White "Dogdu, Mehmet"]
[Black "Demirag, Batuhan"]
[Result "1/2-1/2"]
[ECO "B42"]
[WhiteElo "1985"]
[BlackElo "1914"]
[Annotator "NA"]
[PlyCount "87"]
[EventType "team-tourn"]
[EventCountry "TUR"]
[SourceTitle "playchess.com"]
[Source "ChessBase"]
[SourceQuality "1"]
[TimeControl "5400+30"]

1. e4 {[%emt 0:00:30]} c5 {[%emt 0:01:00]} 2. Nf3 {[%emt 0:00:30]} e6 {[%emt 0:00:00]} 3. d4 {[%emt 0:00:00]} cxd4 {[%emt 0:00:00]} 4. Nxd4 {[%emt 0:00:00]} a6 {[%emt 0:00:00]} 5. Bd3 {[%emt 0:00:30]} Nc6 {[%emt 0:00:00]} 6. Be3 {[%emt 0:04:30]} Nf6 {[%emt 0:02:30]} 7. Nd2 {[%emt 0:03:30] B42: Sicilian: Kan Variation: 5 Bd3} d5 {[%emt 0:01:30]} 8. O-O {[%emt 0:01:30]} Nxd4 $146 {[%emt 0:07:30]} ({Predecessor:} 8... Be7 9. exd5 Nxd5 10. Nxc6 bxc6 11. Bd4 O-O 12. Nb3 a5 13. Re1 Bf6 14. c4 {½-½ (24) Ioannidis,E (2292)-Kovalev,A (2487) Budapest 2015}) 9. Bxd4 {[%emt 0:00:00]} dxe4 {[%emt 0:00:00]} 10. Nxe4 {[%emt 0:01:00]} Be7 {[%emt 0:02:00]} 11. Nxf6+ {[%emt 0:12:30]} Bxf6 {[%emt 0:00:00]} 12. Bxf6 {[%emt 0:00:30]} Qxf6 {[%emt 0:00:00]} 13. Qh5 {[%emt 0:00:00]} h6 {[%emt 0:03:30]} 14. Qc5 {[%emt 0:02:00]} Qe7 {[%emt 0:01:30]} 15. Qb6 {[%emt 0:05:30]} O-O {[%emt 0:01:30]} 16. Be4 {[%emt 0:01:30]} f5 {[%emt 0:02:30]} 17. Bf3 {[%emt 0:01:30]} e5 {[%emt 0:02:30]} 18. Rad1 {[%emt 0:09:30]} e4 {[%emt 0:01:30]} 19. Be2 $11 {[%emt 0:04:30]} f4 {[%emt 0:06:30]} 20. f3 {[%emt 0:02:30]} e3 {[%emt 0:04:30]} 21. Rd4 {[%emt 0:05:30]} Qg5 {[%emt 0:12:30]} 22. Kh1 {[%emt 0:06:30]} Kh8 {[%emt 0:05:30]} 23. g3 {[%emt 0:06:30]} fxg3 {[%emt 0:08:30]} 24. Rg1 {[%emt 0:01:30]} Qe5 {[%emt 0:01:30]} 25. Re4 {[%emt 0:10:30]} Qd5 {[%emt 0:05:30]} 26. Rxg3 {[%emt 0:06:31]} Bd7 {[%emt 0:10:30]} 27. Qg6 {[%emt 0:04:39]} Rf7 {[%emt 0:04:04]} 28. c4 {[%emt 0:02:33]} Qf5 {[%emt 0:00:09]} 29. Qxf5 {[%emt 0:00:30]} Bxf5 {[%emt 0:00:30]} 30. Rxe3 {[%emt 0:00:00]} Rd8 {[%emt 0:00:00]} 31. b4 {[%emt 0:02:11]} Rd2 {[%emt 0:00:45]} 32. a3 {[%emt 0:00:19]} Rfd7 {[%emt 0:02:08]} 33. c5 {[%emt 0:01:39]} Rc2 {[%emt 0:00:49]} 34. Rg1 {[%emt 0:00:36]} Rdd2 {[%emt 0:00:38]} 35. Re1 {[%emt 0:00:16]} Bd7 {[%emt 0:03:25]} 36. Rd3 {[%emt 0:02:01]} Bc6 {[%emt 0:01:00]} 37. Rxd2 {[%emt 0:01:53]} Rxd2 {[%emt 0:00:30]} 38. Kg1 {[%emt 0:00:30]} Ra2 {[%emt 0:00:00]} 39. Bd3 {[%emt 0:00:53]} Rxa3 {[%emt 0:00:08]} 40. Be4 {[%emt 0:00:00]} Bxe4 {[%emt 0:00:50]} 41. Rxe4 {[%emt 0:00:18]} a5 {[%emt 0:04:51]} 42. bxa5 {[%emt 0:01:51]} Rxa5 {[%emt 0:00:06]} 43. Rb4 {[%emt 0:01:00]} Rxc5 {[%emt 0:00:10]} 44. Rxb7 {[%emt 0:00:05]} 1/2-1/2

[Event "2nd Turkish League 2017"]
[Site "Konya"]
[Date "2017.07.20"]
[Round "5"]
[White "Cannesar, Rad"]
[Black "Ibik, Halit Yavuz"]
[Result "1/2-1/2"]
[ECO "B86"]
[WhiteElo "1979"]
[BlackElo "2004"]
[Annotator "NA"]
[PlyCount "65"]
[EventType "team-tourn"]
[EventCountry "TUR"]
[SourceTitle "playchess.com"]
[Source "ChessBase"]
[SourceQuality "1"]
[TimeControl "5400+30"]

1. e4 {[%emt 0:00:30]} c5 {[%emt 0:01:00]} 2. Nf3 {[%emt 0:00:30]} d6 {[%emt 0:00:30]} 3. d4 {[%emt 0:00:30]} cxd4 {[%emt 0:00:00]} 4. Nxd4 {[%emt 0:00:00]} Nf6 {[%emt 0:00:00]} 5. Nc3 {[%emt 0:00:00]} a6 {[%emt 0:00:30]} 6. Bc4 {[%emt 0:00:00]} e6 {[%emt 0:00:30]} 7. Bb3 {[%emt 0:00:00]} Nbd7 {[%emt 0:00:30]} 8. O-O {[%emt 0:09:30]} Nc5 {[%emt 0:00:00]} 9. Qe2 {[%emt 0:04:30]} Be7 {[%emt 0:04:00] B86: Sicilian Scheveningen/Najdorf: 6 Bc4, without early ...b5} 10. Rd1 {[%emt 0:01:30]} (10. Kh1 O-O 11. f4 Qc7 12. e5 Ne8 13. Bd2 b5 14. exd6 Nxd6 15. f5 Nxb3 16. axb3 Bf6 17. Be3 Bxd4 18. Bxd4 Nxf5 {0-1 (65) Tomczak,J (2587)-Swiercz,D (2664) Hucisko 2016}) 10... Qc7 {[%emt 0:00:00]} 11. a4 {[%emt 0:06:30]} b6 {[%emt 0:03:00]} 12. Ba2 {[%emt 0:06:30]} O-O {[%emt 0:02:30]} 13. f3 {[%emt 0:03:30]} Rd8 $146 {[%emt 0:02:30]} ({Predecessor:} 13... Bb7 14. b4 Ncd7 15. Bb2 Rfe8 16. b5 a5 17. Re1 {0-1 (55) Giurgiu,N (2084)-Shelykalin,V (2100) LSS email 2012}) 14. Be3 {[%emt 0:05:30]} Bb7 {[%emt 0:03:30]} 15. b4 {[%emt 0:05:30]} Ncd7 {[%emt 0:01:30]} 16. Qe1 {[%emt 0:02:30]} Rac8 {[%emt 0:02:30]} 17. Nde2 {[%emt 0:01:30]} Ne5 {[%emt 0:14:30]} 18. Qf2 {[%emt 0:03:30]} Nfd7 {[%emt 0:00:30]} 19. Rac1 {[%emt 0:05:30]} Bf6 {[%emt 0:12:30]} 20. Bd4 {[%emt 0:03:30]} Nc6 {[%emt 0:13:30]} 21. Bxf6 {[%emt 0:00:30]} Nxf6 {[%emt 0:00:00]} 22. Rb1 {[%emt 0:04:30]} Ne7 $15 {[%emt 0:14:00]} 23. Rdc1 {[%emt 0:06:30]} d5 {[%emt 0:07:13]} 24. exd5 {[%emt 0:02:30]} exd5 {[%emt 0:00:19]} 25. Nd1 {[%emt 0:06:30]} Nf5 {[%emt 0:02:05]} 26. Ne3 {[%emt 0:02:32]} Nxe3 {[%emt 0:02:52]} 27. Qxe3 {[%emt 0:00:11]} Re8 {[%emt 0:08:41]} 28. Qd2 {[%emt 0:04:23]} Rcd8 {[%emt 0:02:26]} 29. Nd4 {[%emt 0:02:10]} Nd7 {[%emt 0:00:56]} 30. Re1 {[%emt 0:03:44]} Ne5 {[%emt 0:01:43]} 31. Rbd1 {[%emt 0:06:19]} Nc4 {[%emt 0:00:38]} 32. Qc3 {[%emt 0:01:06]} g6 {[%emt 0:01:21]} 33. Bb3 {[%emt 0:02:58]} 1/2-1/2

[Event "2nd Turkish League 2017"]
[Site "Konya"]
[Date "2017.07.20"]
[Round "5"]
[White "Okay, Ilkin Ege"]
[Black "Ataman, Alper Efe"]
[Result "1/2-1/2"]
[ECO "C27"]
[WhiteElo "1973"]
[BlackElo "2175"]
[Annotator "NA"]
[PlyCount "59"]
[EventType "team-tourn"]
[EventCountry "TUR"]
[SourceTitle "playchess.com"]
[Source "ChessBase"]
[SourceQuality "1"]
[TimeControl "5400+30"]

1. e4 {[%emt 0:00:30]} e5 {[%emt 0:01:00]} 2. Nc3 {[%emt 0:00:00]} Nf6 {[%emt 0:00:30]} 3. Bc4 {[%emt 0:00:00]} Bc5 {[%emt 0:03:30]} 4. d3 {[%emt 0:00:30]} d6 {[%emt 0:02:30]} 5. Bg5 {[%emt 0:03:30]} h6 {[%emt 0:01:30]} 6. Bh4 {[%emt 0:00:30] C27: Vienna Game: 2...Nf6 3 Bc4 Nxe4} c6 {[%emt 0:04:30]} 7. a4 {[%emt 0:05:30]} (7. Nf3 Nbd7 8. Bb3 Bb6 9. d4 g5 10. Bg3 g4 11. dxe5 gxf3 12. exf6 fxg2 13. Bxf7+ Kxf7 14. Qh5+ Ke6 15. Qf5+ Kf7 16. Qh5+ Ke6 {½-½ (16) Caruana,F (2811)-Anand,V (2797) Zurich 2015}) 7... Nbd7 $146 {[%emt 0:03:30]} ({Predecessor:} 7... a5 8. Nge2 Qb6 9. O-O g5 10. Bg3 Nbd7 11. Qd2 Nf8 12. Nd1 Ng6 13. c3 Qc7 {½-½ (70) Jasim,A (2280)-Husari,S (2397) Doha 2002}) 8. Nf3 {[%emt 0:01:30]} Nf8 {[%emt 0:01:30]} 9. Qd2 {[%emt 0:06:30]} Ng6 {[%emt 0:01:30]} 10. Bg3 {[%emt 0:03:30]} Bg4 {[%emt 0:02:30]} 11. Ne2 {[%emt 0:13:30]} O-O {[%emt 0:04:30]} 12. h3 {[%emt 0:11:30]} Bxf3 {[%emt 0:05:30]} 13. gxf3 {[%emt 0:00:00]} d5 {[%emt 0:00:30]} 14. Bb3 {[%emt 0:02:00]} Re8 {[%emt 0:01:30]} 15. O-O-O {[%emt 0:03:30]} Qb6 {[%emt 0:03:30]} 16. exd5 {[%emt 0:12:30]} Nxd5 {[%emt 0:08:30]} 17. Bxd5 {[%emt 0:02:30]} cxd5 {[%emt 0:00:00]} 18. d4 {[%emt 0:00:00]} exd4 {[%emt 0:05:00]} 19. Nxd4 {[%emt 0:00:00]} Rac8 {[%emt 0:00:30]} 20. Nf5 {[%emt 0:07:30]} Qa6 {[%emt 0:05:30]} 21. Qxd5 {[%emt 0:04:30]} Qxa4 $17 {[%emt 0:04:30]} 22. Kb1 {[%emt 0:00:30]} Re6 {[%emt 0:08:30]} 23. Rhe1 {[%emt 0:01:30]} Ra6 {[%emt 0:02:30]} 24. c3 {[%emt 0:00:30]} Bf8 {[%emt 0:04:30]} 25. Re4 {[%emt 0:02:47]} Qa5 {[%emt 0:04:30]} 26. Qxa5 {[%emt 0:06:39]} Rxa5 {[%emt 0:00:30]} 27. Nd6 {[%emt 0:00:02]} Bxd6 {[%emt 0:03:41]} 28. Rxd6 {[%emt 0:00:08]} Rf5 {[%emt 0:04:28]} 29. Rd7 {[%emt 0:01:13]} Rb5 {[%emt 0:02:37]} 30. Kc2 {[%emt 0:00:13]} 1/2-1/2

[Event "2nd Turkish League 2017"]
[Site "Konya"]
[Date "2017.07.20"]
[Round "5"]
[White "Celik, Berkay"]
[Black "Kerem, Halil Ozgun"]
[Result "0-1"]
[ECO "B31"]
[WhiteElo "1963"]
[BlackElo "2074"]
[Annotator "NA"]
[PlyCount "121"]
[EventType "team-tourn"]
[EventCountry "TUR"]
[SourceTitle "playchess.com"]
[Source "ChessBase"]
[SourceQuality "1"]
[TimeControl "5400+30"]

1. e4 {[%emt 0:00:30]} c5 {[%emt 0:01:00]} 2. Na3 {[%emt 0:00:00] B31: Sicilian: 2...Nc6 3 Bb5 g6} (2. Nf3 d6 3. d4 cxd4 4. Nxd4 Nf6 5. Nc3 Bd7 6. Be2 Nc6 7. Be3 e6 8. g4 h6 9. f4 Nxd4 10. Qxd4 e5 11. fxe5 Nxg4 12. O-O-O Nxe3 13. Qxe3 Qg5 14. Qxg5 hxg5 15. exd6 O-O-O {½-½ (32) So,W (2812)-Carlsen,M (2832) Leuven 2017}) 2... Nc6 {[%emt 0:03:30]} 3. Bb5 {[%emt 0:00:00]} Qc7 {[%emt 0:00:30]} 4. c3 {[%emt 0:00:30]} Nf6 {[%emt 0:00:30]} 5. Qe2 {[%emt 0:03:30]} a6 {[%emt 0:04:30]} 6. Bxc6 {[%emt 0:03:30]} Qxc6 {[%emt 0:00:30]} 7. d3 {[%emt 0:00:30]} g6 $146 {[%emt 0:25:30]} ({Predecessor:} 7... b5 8. Nf3 Bb7 9. O-O d6 {½-½ (80) Bernardi,R (2116)-Mrdja,M (2370) Verona 2008}) 8. f4 {[%emt 0:04:30]} d6 {[%emt 0:02:30]} 9. Nf3 {[%emt 0:05:30]} Bg4 {[%emt 0:00:30]} 10. Nc4 {[%emt 0:04:30]} b5 {[%emt 0:04:30]} 11. Ne3 {[%emt 0:00:00]} Bh5 {[%emt 0:01:30]} 12. O-O {[%emt 0:01:00]} Bg7 {[%emt 0:00:30]} 13. h3 {[%emt 0:20:30]} Bxf3 {[%emt 0:00:30]} 14. Rxf3 {[%emt 0:04:30]} c4 {[%emt 0:09:30]} 15. dxc4 {[%emt 0:06:30]} Nxe4 {[%emt 0:02:30]} 16. f5 {[%emt 0:02:30]} bxc4 {[%emt 0:00:30]} 17. Qxc4 {[%emt 0:01:30]} Qxc4 {[%emt 0:07:30]} 18. Nxc4 {[%emt 0:00:30]} Rb8 {[%emt 0:00:30]} 19. Be3 {[%emt 0:01:30]} d5 {[%emt 0:00:30]} 20. Bf4 {[%emt 0:00:30]} Rb7 {[%emt 0:02:30]} 21. Ne3 {[%emt 0:01:30]} e6 {[%emt 0:05:30]} 22. fxe6 {[%emt 0:02:30]} fxe6 {[%emt 0:00:30]} 23. Nd1 {[%emt 0:00:30]} e5 {[%emt 0:03:30]} (23... O-O $17 24. Bc1 Rf5) 24. Be3 {[%emt 0:00:30]} Ke7 {[%emt 0:02:30]} 25. Nf2 {[%emt 0:00:30]} Nd6 {[%emt 0:01:30]} 26. Bg5+ {[%emt 0:02:30]} Ke6 {[%emt 0:00:30]} 27. Nd3 {[%emt 0:01:30]} Rc8 {[%emt 0:01:17]} 28. Re1 {[%emt 0:06:30]} e4 {[%emt 0:01:03]} 29. Rf2 {[%emt 0:01:30]} Nc4 {[%emt 0:05:27]} 30. Bc1 {[%emt 0:06:21]} Kd6 {[%emt 0:02:19]} 31. Nf4 {[%emt 0:00:16]} g5 {[%emt 0:01:42]} 32. Nh5 {[%emt 0:01:24]} Be5 {[%emt 0:00:18]} 33. b3 {[%emt 0:03:05]} Bxc3 {[%emt 0:01:03]} 34. Rd1 {[%emt 0:00:11]} Nb6 {[%emt 0:04:36]} 35. Bxg5 {[%emt 0:00:19]} Kc5 {[%emt 0:01:59]} 36. Nf6 {[%emt 0:01:16]} Bd4 {[%emt 0:00:46]} 37. a3 {[%emt 0:02:57]} Bxf2+ {[%emt 0:00:43]} 38. Kxf2 {[%emt 0:00:02]} Kd6 {[%emt 0:01:44]} 39. Nxe4+ {[%emt 0:00:30]} Ke5 {[%emt 0:00:06]} 40. Nd2 {[%emt 0:01:42]} Rf7+ {[%emt 0:00:30]} 41. Nf3+ {[%emt 0:00:30]} Kd6 {[%emt 0:00:00]} 42. Be3 {[%emt 0:02:00]} Nd7 {[%emt 0:00:52]} 43. Bd4 {[%emt 0:01:32]} Nf6 $17 {[%emt 0:02:04]} (43... Rc2+ $142 44. Kg1 Re7) 44. Be5+ {[%emt 0:01:15]} Kc6 {[%emt 0:00:10]} 45. Ke3 {[%emt 0:00:50]} Nd7 {[%emt 0:00:38]} 46. Kd4 {[%emt 0:01:46]} Re7 {[%emt 0:01:01]} 47. Rc1+ {[%emt 0:01:59]} Kb7 {[%emt 0:00:03]} 48. Rxc8 {[%emt 0:00:31]} Kxc8 {[%emt 0:00:04]} 49. Kxd5 {[%emt 0:00:29]} Nxe5 {[%emt 0:01:48]} 50. Nxe5 {[%emt 0:00:02]} Rc7 {[%emt 0:00:00]} 51. Nc4 {[%emt 0:00:17]} Re7 {[%emt 0:00:33]} 52. Ne5 {[%emt 0:04:21]} Kb7 {[%emt 0:00:19]} 53. b4 {[%emt 0:00:07]} Rc7 {[%emt 0:00:19]} 54. Nc4 {[%emt 0:00:59]} Rd7+ {[%emt 0:00:29]} 55. Kc5 {[%emt 0:00:43]} Rd3 {[%emt 0:00:13]} 56. a4 {[%emt 0:00:21]} Rg3 {[%emt 0:00:30]} 57. b5 {[%emt 0:00:00]} axb5 {[%emt 0:00:00]} 58. axb5 {[%emt 0:00:24]} Rg5+ {[%emt 0:00:00]} 59. Kd4 {[%emt 0:02:48]} Rxg2 {[%emt 0:00:00]} 60. Nd6+ {[%emt 0:01:33]} Kb6 {[%emt 0:00:25]} 61. Nf5 {[%emt 0:00:30]} 0-1